bitfinex-derivatives/quotes_BTCF0:USTF0_20250912
["timestamp","ask_amount","ask_price","bid_price","bid_amount"]
[1757701982848,0.00010907,116490.0,116480.0,2.1643953]
[1757701984150,0.00010907,116490.0,116480.0,1.3785953]
[1757701984448,0.00010907,116490.0,116480.0,2.1643953]
[1757701984650,0.00010907,116490.0,116480.0,1.3785953]
[1757701984848,0.01391907,116490.0,116480.0,2.1643153]
[1757701985456,0.42033381,116490.0,116480.0,0.9608]
[1757701985764,0.80380381,116490.0,116480.0,1.6642902]
[1757701985958,0.30373871,116490.0,116480.0,1.6642902]
[1757701986153,0.66453871,116490.0,116480.0,1.8035553]
[1757701987354,0.30373871,116490.0,116480.0,1.8035553]
[1757701987561,0.30373871,116490.0,116480.0,1.8037953]
[1757701987751,0.30373871,116490.0,116480.0,1.386]
[1757701987953,0.44300381,116490.0,116480.0,1.6645302]
[1757701988152,0.44300381,116490.0,116480.0,1.386]
[1757701988350,0.44300381,116490.0,116480.0,0.8785302]
[1757701988557,0.58226891,116490.0,116480.0,0.6]
[1757701988762,0.94306891,116490.0,116480.0,1.5259051]
[1757701989060,0.66453871,116490.0,116480.0,1.6651702]
[1757701989261,0.80380381,116490.0,116480.0,1.6651702]
[1757701989661,0.41453871,116490.0,116480.0,1.8044353]
[1757701989962,0.55380381,116490.0,116480.0,1.6651702]
[1757701990153,0.55380381,116490.0,116480.0,1.38664]
[1757701990353,0.80380381,116490.0,116480.0,1.38648]
[1757701990562,0.94306891,116490.0,116480.0,0.6]
[1757701990760,0.94306891,116490.0,116480.0,1.3864]
[1757701990962,0.94306891,116490.0,116480.0,1.5256651]
[1757701991162,0.96960045,116490.0,116480.0,1.3864]
[1757701991464,0.96960045,116490.0,116480.0,1.5256651]
[1757701991658,0.96960045,116490.0,116480.0,0.6]
[1757701991959,1.10886555,116490.0,116480.0,1.38636]
[1757701992161,0.96960045,116490.0,116480.0,1.38636]
[1757701992352,0.96960045,116490.0,116480.0,1.5256251]
[1757701992661,0.69107025,116490.0,116480.0,1.5256251]
[1757701993055,0.96960045,116490.0,116480.0,1.38636]
[1757701993257,0.44107025,116490.0,116480.0,1.5256251]
[1757701993459,0.58033535,116490.0,116480.0,1.5256251]
[1757701994558,0.58033535,116490.0,116480.0,1.38636]
[1757701994757,0.58033535,116490.0,116480.0,1.5256251]
[1757701995361,0.58033535,116490.0,116480.0,1.3862]
[1757701995551,0.58033535,116490.0,116480.0,1.5254651]
[1757701995950,0.44107025,116490.0,116480.0,1.6647302]
[1757701996464,0.58033535,116490.0,116480.0,1.6647302]
[1757701996660,0.44107025,116490.0,116480.0,1.6647302]
[1757701996862,0.05373871,116490.0,116480.0,1.6647302]
[1757701997066,0.19300381,116490.0,116480.0,1.6647302]
[1757701997562,0.05373871,116490.0,116480.0,1.8039953]
[1757701998362,0.01725871,116490.0,116480.0,2.4147953]
[1757701998568,0.00010907,116490.0,116480.0,2.5005965]
[1757701998860,0.00010907,116490.0,116480.0,2.4158353]
[1757701999361,0.00010907,116490.0,116480.0,1.6285953]
[1757701999566,0.03658907,116490.0,116480.0,2.1663153]
[1757701999757,0.01391907,116490.0,116480.0,2.1663153]
[1757702000160,0.01391907,116490.0,116480.0,2.4163153]
[1757702000364,0.00010907,116490.0,116480.0,2.4163153]
[1757702002266,0.01297907,116490.0,116480.0,2.4163153]
[1757702002766,0.01297907,116490.0,116480.0,1.2108]
[1757702003067,0.01297907,116490.0,116480.0,1.6285953]
[1757702003268,0.00010907,116490.0,116480.0,2.5023971]
[1757702003566,0.00010907,116490.0,116480.0,1.6285953]
[1757702003765,0.01297907,116490.0,116480.0,2.4165553]
[1757702004265,0.01297907,116490.0,116480.0,2.42679784]
[1757702004662,0.01297907,116490.0,116480.0,2.51259964]
[1757702004663,0.00010907,116490.0,116480.0,2.51259964]
[1757702004866,0.00010907,116490.0,116480.0,2.42679784]
[1757702005164,0.00010907,116490.0,116480.0,2.42767784]
[1757702005564,0.00010907,116490.0,116480.0,1.72463974]
[1757702005765,0.00010907,116490.0,116480.0,2.51331974]
[1757702006962,0.00010907,116490.0,116480.0,2.37405464]
[1757702007166,0.00010907,116490.0,116480.0,2.42739784]
[1757702007362,0.00010907,116490.0,116480.0,1.63828165]
[1757702007561,0.00010907,116490.0,116480.0,1.1143973]
[1757702007757,0.01297907,116490.0,116480.0,2.0771953]
[1757702007964,0.01297907,116490.0,116480.0,2.09688165]
[1757702008868,0.00010907,116490.0,116480.0,2.09688165]
[1757702009366,0.00010907,116490.0,116480.0,2.18268365]
[1757702009669,0.00010907,116490.0,116480.0,2.09668165]
[1757702009856,0.00010907,116490.0,116480.0,2.09692165]
[1757702010556,0.00010907,116490.0,116480.0,2.18272365]
[1757702011969,0.00010907,116490.0,116480.0,1.39408365]
[1757702012272,0.00010907,116490.0,116480.0,2.18312365]
[1757702012866,0.00196046,116490.0,116480.0,2.18312365]
[1757702013163,0.00196046,116490.0,116480.0,2.09724165]
[1757702013769,0.00196046,116490.0,116480.0,2.18304365]
[1757702013974,0.00196046,116490.0,116480.0,2.43304365]
[1757702014271,0.00196046,116490.0,116480.0,2.43308365]
[1757702014867,0.00196046,116490.0,116480.0,1.64408365]
[1757702015064,0.00196046,116490.0,116480.0,1.22628835]
[1757702015269,0.00196046,116490.0,116480.0,2.43312365]
[1757702015869,0.00196046,116490.0,116480.0,1.55828165]
[1757702016071,0.00196046,116490.0,116480.0,2.43312365]
[1757702017172,0.00196046,116490.0,116480.0,2.34780165]
[1757702017376,0.00196046,116490.0,116480.0,2.43360365]
[1757702017673,0.00196046,116490.0,116480.0,2.34776165]
[1757702017876,0.00196046,116490.0,116480.0,2.34772165]
[1757702018173,0.01483046,116490.0,116480.0,1.92992635]
[1757702018374,0.00196046,116490.0,116480.0,2.34772165]
[1757702019274,0.00196046,116490.0,116480.0,2.09772165]
[1757702020376,0.00196046,116490.0,116480.0,1.67992635]
[1757702020578,0.00196046,116490.0,116480.0,2.09772165]
[1757702021174,0.00196046,116490.0,116480.0,1.30828165]
[1757702021372,0.01483046,116490.0,116480.0,2.09740165]
[1757702022170,0.01483046,116490.0,116480.0,2.09760165]
[1757702022575,0.01483046,116490.0,116480.0,2.18340365]
[1757702022880,0.00196046,116490.0,116480.0,2.18340365]
[1757702024665,0.39974619,116530.0,116500.0,0.00055]
[1757702024875,0.21900272,116530.0,116520.0,0.1619751]
[1757702025172,0.35826782,116530.0,116520.0,0.58271]
[1757702025373,0.50595764,116530.0,116520.0,1.37211]
[1757702025579,0.97749254,116530.0,116520.0,0.58271]
[1757702025780,0.69896234,116530.0,116520.0,0.58271]
[1757702025979,0.97749254,116530.0,116520.0,1.37215]
[1757702026480,0.97749254,116530.0,116520.0,1.5114151]
[1757702026673,0.97749254,116530.0,116520.0,1.37215]
[1757702026875,1.11675764,116530.0,116520.0,1.37215]
[1757702027678,0.97749254,116530.0,116520.0,1.37215]
[1757702028581,0.88455786,116530.0,116520.0,1.37215]
[1757702029279,0.95331259,116530.0,116520.0,1.37215]
[1757702030480,0.95331259,116530.0,116520.0,1.34932]
[1757702031886,0.95331259,116530.0,116520.0,1.3492]
[1757702033379,0.95331259,116530.0,116520.0,0.56]
[1757702033584,1.13890811,116530.0,116520.0,0.56]
[1757702033975,0.95331259,116530.0,116520.0,0.56]
[1757702034385,0.51771707,116530.0,116520.0,0.58161]
[1757702034686,0.70331259,116530.0,116520.0,0.58161]
[1757702035777,0.70331259,116530.0,116520.0,0.56]
[1757702036677,0.51771707,116530.0,116520.0,0.56]
[1757702036977,0.70331259,116530.0,116520.0,0.58161]
[1757702037176,0.70331259,116530.0,116520.0,0.56]
[1757702037377,0.70331259,116530.0,116520.0,0.58161]
[1757702038686,0.70331259,116530.0,116520.0,1.37213]
[1757702038987,0.70331259,116530.0,116520.0,0.58161]
[1757702039189,0.70331259,116530.0,116520.0,0.56]
[1757702039486,0.70331259,116530.0,116520.0,0.76720552]
[1757702040080,0.70331259,116530.0,116520.0,0.58161]
[1757702040282,0.51771707,116530.0,116520.0,0.58161]
[1757702040482,0.70331259,116530.0,116520.0,0.58161]
[1757702042181,0.70331259,116530.0,116520.0,1.351]
[1757702042584,0.70331259,116530.0,116520.0,1.53659552]
[1757702042794,0.51771707,116530.0,116520.0,1.351]
[1757702042982,0.70331259,116530.0,116520.0,1.351]
[1757702043182,0.51771707,116530.0,116520.0,1.351]
[1757702043382,0.70331259,116530.0,116520.0,1.351]
[1757702043982,0.51771707,116530.0,116520.0,1.351]
[1757702044184,0.70331259,116530.0,116520.0,1.351]
[1757702046289,0.67676375,116530.0,116520.0,1.351]
[1757702046492,0.70332462,116530.0,116520.0,1.351]
[1757702046985,0.88892014,116530.0,116520.0,0.56]
[1757702047386,0.70332462,116530.0,116520.0,0.56]
[1757702052782,1.49808462,116530.0,116520.0,0.58161]
[1757702053188,1.3124891,116530.0,116520.0,0.58161]
[1757702053489,1.49808462,116530.0,116520.0,0.56]
[1757702054296,0.70332462,116530.0,116520.0,0.58161]
[1757702054498,1.49776462,116530.0,116520.0,0.58161]
[1757702054694,0.5177291,116530.0,116520.0,0.58161]
[1757702054895,0.70332462,116530.0,116520.0,0.58161]
[1757702055093,1.49768462,116530.0,116520.0,0.58161]
[1757702055890,1.3120891,116530.0,116520.0,0.58161]
[1757702056089,1.49768462,116530.0,116520.0,0.58161]
[1757702058199,1.49768462,116530.0,116520.0,0.56]
[1757702062496,0.5177291,116530.0,116520.0,0.58161]
[1757702062696,1.49704462,116530.0,116520.0,0.58161]
[1757702065407,1.49704462,116530.0,116520.0,0.56]
[1757702065901,0.70332462,116530.0,116520.0,0.56]
[1757702066106,1.49708462,116530.0,116520.0,0.60086995]
[1757702066705,1.52791272,116530.0,116520.0,0.60086995]
[1757702067908,0.73415272,116530.0,116520.0,0.60086995]
[1757702068112,1.52767272,116530.0,116520.0,0.60086995]
[1757702068308,1.49684462,116530.0,116520.0,0.78646547]
[1757702068608,1.3112491,116530.0,116520.0,0.60086995]
[1757702068908,1.49684462,116530.0,116520.0,0.58105]
[1757702069097,1.3112491,116530.0,116520.0,0.58105]
[1757702069301,1.49684462,116530.0,116520.0,0.58105]
[1757702069908,1.46108462,116530.0,116520.0,0.56]
[1757702070506,0.66756462,116530.0,116520.0,0.56]
[1757702070708,1.46068462,116530.0,116520.0,0.56]
[1757702072501,0.66756462,116530.0,116520.0,0.56]
[1757702072807,1.46032462,116530.0,116520.0,0.56]
[1757702074502,1.49115272,116530.0,116520.0,0.56]
[1757702074904,1.3409772,116530.0,116520.0,0.58105]
[1757702075415,1.52657272,116530.0,116520.0,0.58105]
[1757702076113,0.73381272,116530.0,116520.0,0.58105]
[1757702076302,0.73381272,116530.0,116520.0,0.76664552]
[1757702076303,0.1874172,116530.0,116520.0,0.76664552]
[1757702076613,0.5482172,116530.0,116520.0,0.76664552]
[1757702076807,0.70298462,116530.0,116520.0,0.76664552]
[1757702077214,0.5173891,116530.0,116520.0,0.76664552]
[1757702077707,0.70298462,116530.0,116520.0,0.76664552]
[1757702078512,0.5173891,116530.0,116520.0,0.76664552]
[1757702078717,0.70298462,116530.0,116520.0,0.76664552]
[1757702079027,0.70298462,116530.0,116520.0,0.58105]
[1757702080225,0.5173891,116530.0,116520.0,0.58105]
[1757702080432,0.70298462,116530.0,116520.0,0.58105]
[1757702081218,0.5173891,116530.0,116520.0,0.58105]
[1757702081432,0.70298462,116530.0,116520.0,0.58105]
[1757702082029,0.5173891,116530.0,116520.0,0.58105]
[1757702082226,0.70298462,116530.0,116520.0,0.58105]
[1757702086428,0.70298462,116530.0,116520.0,0.57666801]
[1757702087630,0.70298462,116530.0,116520.0,0.55561801]
[1757702087934,0.70298462,116530.0,116520.0,0.57754801]
[1757702088438,0.5173891,116530.0,116520.0,0.57754801]
[1757702088637,0.70298462,116530.0,116520.0,0.57754801]
[1757702090333,0.65658975,116530.0,116520.0,0.57754801]
[1757702090534,0.93499105,116530.0,116520.0,0.57754801]
[1757702090734,0.5173891,116530.0,116520.0,0.57754801]
[1757702091033,0.93499105,116530.0,116520.0,0.57754801]
[1757702091930,0.5173891,116530.0,116520.0,0.57754801]
[1757702092130,0.93499105,116530.0,116520.0,0.57754801]
[1757702094433,1.18499105,116530.0,116520.0,0.55561801]
[1757702100238,1.97659105,116530.0,116520.0,0.55561801]
[1757702100639,1.18499105,116530.0,116520.0,0.55561801]
[1757702100834,1.97659105,116530.0,116520.0,0.55561801]
[1757702101440,1.18499105,116530.0,116520.0,0.55561801]
[1757702102042,0.7673891,116530.0,116520.0,0.55561801]
[1757702102245,1.18499105,116530.0,116520.0,0.55561801]
[1757702103337,0.7673891,116530.0,116520.0,0.55561801]
[1757702103634,0.7673891,116530.0,116520.0,0.71690866]
[1757702103635,0.93499105,116530.0,116520.0,0.71690866]
[1757702103840,0.93499105,116530.0,116520.0,0.57770801]
[1757702104533,0.5173891,116530.0,116520.0,0.57770801]
[1757702104733,0.93499105,116530.0,116520.0,0.57770801]
[1757702105037,0.93499105,116530.0,116520.0,0.59770697]
[1757702109237,0.5173891,116530.0,116520.0,0.59770697]
[1757702109438,0.93499105,116530.0,116520.0,0.59770697]
[1757702109639,0.93499105,116530.0,116520.0,0.55561801]
[1757702110639,0.93499105,116530.0,116520.0,0.57770801]
[1757702112441,0.4349904,116530.0,116520.0,0.73724478]
[1757702112749,0.4349904,116530.0,116520.0,0.98724478]
[1757702112939,0.7957904,116530.0,116520.0,0.98724478]
[1757702113239,0.65658975,116530.0,116520.0,1.12644543]
[1757702113638,0.5173891,116530.0,116520.0,0.98724478]
[1757702113839,0.7957904,116530.0,116520.0,0.98724478]
[1757702114240,0.5173891,116530.0,116520.0,1.77836478]
[1757702114440,0.7957904,116530.0,116520.0,1.77836478]
[1757702114840,0.7957904,116530.0,116520.0,0.98724478]
[1757702115046,0.7957904,116530.0,116520.0,1.77828478]
[1757702115245,0.7957904,116530.0,116520.0,0.98724478]
[1757702115546,0.93499105,116530.0,116520.0,1.63916413]
[1757702115747,0.93499105,116530.0,116520.0,1.77836478]
[1757702115947,0.7957904,116530.0,116520.0,1.77836478]
[1757702117049,0.5173891,116530.0,116520.0,0.84804413]
[1757702117237,0.5173891,116530.0,116520.0,1.77848478]
[1757702117443,0.7957904,116530.0,116520.0,1.77848478]
[1757702118246,0.79614109,116530.0,116520.0,1.77848478]
[1757702118541,0.79614109,116530.0,116520.0,1.63928413]
[1757702119049,0.79614109,116530.0,116520.0,1.77848478]
[1757702119243,0.29614044,116530.0,116520.0,1.91768543]
[1757702119436,0.29614044,116530.0,116520.0,1.77792478]
[1757702119645,0.43534109,116530.0,116520.0,1.77792478]
[1757702120955,0.29614044,116530.0,116520.0,1.63872413]
[1757702121144,0.29614044,116530.0,116520.0,1.77792478]
[1757702121445,0.79614109,116530.0,116520.0,1.77792478]
[1757702122150,0.79614109,116530.0,116520.0,1.77752478]
[1757702122352,0.65694044,116530.0,116520.0,1.77752478]
[1757702122553,0.65694044,116530.0,116520.0,1.91668543]
[1757702122744,0.65694044,116530.0,116520.0,1.77748478]
[1757702122940,0.65694044,116530.0,116520.0,0.87644543]
[1757702123145,0.51773979,116530.0,116520.0,1.66660543]
[1757702123445,0.79614109,116530.0,116520.0,1.52740478]
[1757702123746,0.65694044,116530.0,116520.0,1.52740478]
[1757702124049,0.65694044,116530.0,116520.0,1.66660543]
[1757702124351,0.26922888,116530.0,116520.0,1.66660543]
[1757702124753,0.26922888,116530.0,116520.0,0.87644543]
[1757702124955,0.29613516,116530.0,116520.0,1.66636543]
[1757702125248,0.43533581,116530.0,116520.0,0.87644543]
[1757702125454,0.29613516,116530.0,116520.0,1.66636543]
[1757702125751,0.29613516,116530.0,116520.0,1.66620543]
[1757702125954,0.65693516,116530.0,116520.0,1.66620543]
[1757702126351,0.51773451,116530.0,116520.0,1.66620543]
[1757702126654,0.65693516,116530.0,116520.0,1.66620543]
[1757702126854,0.11264945,116530.0,116520.0,1.66620543]
[1757702127156,0.2518501,116530.0,116520.0,1.66620543]
[1757702127646,0.08161473,116530.0,116520.0,2.41620608]
[1757702127842,0.06880473,116530.0,116520.0,2.41620608]
[1757702128047,0.06880473,116530.0,116520.0,2.41592608]
[1757702128252,0.23032547,116530.0,116520.0,2.02668543]
[1757702128450,0.01373,116530.0,116520.0,2.02668543]
[1757702128649,0.01373,116530.0,116520.0,1.23724543]
[1757702128853,0.15293065,116530.0,116520.0,2.02664543]
[1757702129152,5e-05,116530.0,116520.0,1.62644608]
[1757702129356,5e-05,116530.0,116520.0,2.41580608]
[1757702130457,0.02241891,116530.0,116520.0,1.20884413]
[1757702130756,0.16161956,116530.0,116520.0,2.27632543]
[1757702130953,0.16161956,116530.0,116520.0,1.91552543]
[1757702131150,0.04381891,116530.0,116520.0,1.66548543]
[1757702131354,0.18301956,116530.0,116520.0,1.38708413]
[1757702131554,0.25288578,116530.0,116520.0,1.66548543]
[1757702131758,0.25288578,116530.0,116520.0,0.59804413]
[1757702131952,0.90962272,116530.0,116520.0,0.57595413]
[1757702132156,0.90962272,116530.0,116520.0,1.38712413]
[1757702132555,1.15962272,116530.0,116520.0,0.55561801]
[1757702132760,1.15962272,116530.0,116520.0,1.34509801]
[1757702132957,1.15962272,116530.0,116480.0,0.3608]
[1757702132958,0.03508,116490.0,116480.0,0.38249]
[1757702133151,0.17428065,116490.0,116480.0,1.50029065]
[1757702133346,0.17428065,116490.0,116480.0,1.65982806]
[1757702133553,0.6742813,116490.0,116480.0,0.59202676]
[1757702133754,0.17428065,116490.0,116480.0,1.38178676]
[1757702134057,0.17428065,116490.0,116480.0,1.66018806]
[1757702134256,0.17428065,116490.0,116480.0,1.66418806]
[1757702134458,0.03508,116490.0,116480.0,1.66418806]
[1757702134657,0.17428065,116490.0,116480.0,1.66418806]
[1757702134851,0.39588,116490.0,116480.0,1.66418806]
[1757702135052,0.53508065,116490.0,116480.0,1.52498741]
[1757702135448,0.53508065,116490.0,116480.0,0.73522741]
[1757702135655,0.53508065,116490.0,116480.0,1.52522741]
[1757702136060,0.53508065,116490.0,116480.0,1.38602676]
[1757702136256,0.53508065,116490.0,116480.0,1.52522741]
[1757702136564,0.60528641,116490.0,116480.0,1.52522741]
[1757702137260,0.60528641,116490.0,116480.0,1.52502741]
[1757702137460,0.60528641,116490.0,116480.0,1.38570676]
[1757702137661,0.74448706,116490.0,116480.0,1.38566676]
[1757702137964,0.60528641,116490.0,116480.0,1.52486741]
[1757702138758,0.60528641,116490.0,116480.0,1.66406806]
[1757702139358,0.46608576,116490.0,116480.0,1.66406806]
[1757702139558,0.07020576,116490.0,116480.0,1.89653061]
[1757702139859,0.53076215,116500.0,116480.0,1.89653061]
[1757702139860,0.15628215,116500.0,116480.0,2.50733061]
[1757702140061,0.19136215,116500.0,116490.0,0.3000913]
[1757702140360,0.19136215,116500.0,116490.0,0.8500913]
[1757702140561,0.55216215,116500.0,116490.0,0.71089065]
[1757702140862,0.3305628,116500.0,116490.0,1.36141]
[1757702141065,0.3305628,116500.0,116490.0,1.50061065]
[1757702141266,0.6913628,116500.0,116490.0,1.50361065]
[1757702142262,0.4129615,116500.0,116490.0,1.50361065]
[1757702142470,0.6913628,116500.0,116490.0,1.50361065]
[1757702142861,0.6913628,116500.0,116490.0,1.50353065]
[1757702143164,0.6913628,116500.0,116490.0,0.57469]
[1757702143362,0.6913628,116500.0,116490.0,1.50353065]
[1757702144555,0.83056345,116500.0,116490.0,0.57469]
[1757702144760,1.87000345,116500.0,116490.0,0.553]
[1757702144960,1.87000345,116500.0,116450.0,2.14816065]
[1757702144961,0.01368,116460.0,116450.0,2.14816065]
[1757702145263,0.01368,116460.0,116450.0,3.81600195]
[1757702145470,0.01368,116460.0,116450.0,3.50445484]
[1757702145669,0.41340937,116470.0,116460.0,0.02169]
[1757702145868,0.55261002,116470.0,116460.0,0.74089065]
[1757702146460,0.55261002,116470.0,116460.0,0.60169]
[1757702146662,0.55261002,116470.0,116460.0,0.74089065]
[1757702146858,1.08101132,116470.0,116460.0,0.60169]
[1757702147064,1.08101132,116470.0,116460.0,0.58]
[1757702147261,1.87900552,116470.0,116460.0,0.58]
[1757702147462,1.87944552,116470.0,116460.0,0.58]
[1757702147662,1.87944552,116470.0,116460.0,0.52487678]
[1757702147861,1.87944552,116470.0,116450.0,0.005]
[1757702147862,0.03508,116460.0,116450.0,0.005]
[1757702148167,0.03508,116460.0,116430.0,0.94920249]
[1757702148168,1.18592,116460.0,116430.0,0.94920249]
[1757702148365,0.53488065,116440.0,116430.0,0.71461184]
[1757702148665,0.69164669,116440.0,116430.0,1.47293065]
[1757702148870,0.69164669,116440.0,116430.0,0.68121065]
[1757702149070,0.55244604,116440.0,116430.0,0.68121065]
[1757702149468,0.19164604,116440.0,116430.0,0.76704945]
[1757702149669,0.01756539,116440.0,116430.0,1.58385195]
[1757702149859,0.01756539,116440.0,116430.0,1.66969075]
[1757702150463,0.01756539,116440.0,116430.0,1.44089258]
[1757702150668,0.01756539,116440.0,116430.0,1.35505378]
[1757702150868,0.23807917,116440.0,116430.0,0.54501]
[1757702151172,0.23807917,116440.0,116430.0,0.73081378]
[1757702152365,0.05227539,116440.0,116430.0,0.74401378]
[1757702152968,0.23807917,116440.0,116430.0,0.74401378]
[1757702154366,0.01756539,116440.0,116430.0,1.19065248]
[1757702154970,0.01756539,116440.0,116430.0,0.74401378]
[1757702155166,0.03896539,116440.0,116430.0,1.10481378]
[1757702155372,0.05227539,116440.0,116430.0,0.74401378]
[1757702156473,0.23807917,116440.0,116430.0,0.74401378]
[1757702158372,1.10407438,116440.0,116430.0,0.523]
[1757702158675,1.13105294,116440.0,116430.0,0.523]
[1757702158873,0.6682706,116440.0,116430.0,0.69384378]
[1757702159067,0.03896539,116440.0,116430.0,0.69384378]
[1757702159268,0.03896539,116440.0,116430.0,0.50804]
[1757702159577,0.62586525,116440.0,116430.0,0.49484]
[1757702159780,0.62589433,116440.0,116430.0,0.49484]
[1757702160872,0.62589433,116440.0,116430.0,0.50804]
[1757702161374,0.62589433,116440.0,116430.0,0.49484]
[1757702162276,0.69488069,116440.0,116430.0,0.49484]
[1757702163678,1.48552069,116440.0,116430.0,0.69384378]
[1757702163878,1.48552069,116440.0,116430.0,0.68064378]
[1757702164077,1.48552069,116440.0,116430.0,0.49484]
[1757702164266,0.69488069,116440.0,116430.0,0.49484]
[1757702164469,1.48564069,116440.0,116430.0,0.49484]
[1757702164872,0.47820152,116440.0,116430.0,0.69384378]
[1757702165078,0.6640053,116440.0,116430.0,0.69384378]
[1757702166978,0.6773153,116440.0,116430.0,0.69384378]
[1757702167381,0.67736276,116440.0,116430.0,0.69384378]
[1757702167683,0.49155898,116440.0,116430.0,0.69384378]
[1757702167873,0.67736276,116440.0,116430.0,0.69384378]
[1757702169378,0.47824898,116440.0,116430.0,0.69384378]
[1757702169577,0.47824898,116440.0,116430.0,0.77668248]
[1757702169578,0.02706262,116440.0,116430.0,0.77668248]
[1757702169789,0.02706262,116440.0,116430.0,0.69284378]
[1757702169974,0.02706262,116440.0,116430.0,0.50704]
[1757702170173,0.02706262,116440.0,116430.0,0.69284378]
[1757702170574,0.02706262,116440.0,116430.0,1.29752]
[1757702170872,0.02706262,116440.0,116430.0,1.48332378]
[1757702171473,0.02706262,116440.0,116430.0,1.29752]
[1757702171670,0.02706262,116440.0,116430.0,1.48332378]
[1757702171974,0.04846262,116440.0,116430.0,0.69284378]
[1757702172173,0.04846262,116440.0,116430.0,1.2974]
[1757702172373,0.04846262,116440.0,116430.0,1.48320378]
[1757702173385,0.04852955,116440.0,116430.0,1.48304378]
[1757702174279,0.04857955,116440.0,116430.0,1.48304378]
[1757702174676,0.04857955,116440.0,116430.0,1.84384378]
[1757702174974,0.02717955,116440.0,116430.0,1.92968248]
[1757702175172,0.02717955,116440.0,116430.0,2.36548626]
[1757702175370,0.0308281,116460.0,116450.0,0.02184]
[1757702175586,0.97007508,116470.0,116450.0,1.94868378]
[1757702175786,0.0308281,116460.0,116450.0,1.94868378]
[1757702175986,0.92384125,116470.0,116450.0,1.94868378]
[1757702176183,0.60864125,116470.0,116450.0,1.15844378]
[1757702176386,0.60864125,116470.0,116450.0,1.94860378]
[1757702176685,0.0214,116460.0,116450.0,1.94860378]
[1757702177388,0.0214,116460.0,116450.0,2.03442778]
[1757702178588,0.06303747,116470.0,116450.0,2.03442778]
[1757702178793,0.04935747,116470.0,116460.0,0.84959416]
[1757702178982,0.01852937,116470.0,116460.0,1.41959416]
[1757702179288,0.01752937,116470.0,116460.0,1.41959416]
[1757702180181,0.01852937,116470.0,116460.0,1.41959416]
[1757702180376,0.01852937,116470.0,116460.0,2.21039416]
[1757702180580,0.01857937,116470.0,116460.0,2.21039416]
[1757702181985,0.00105,116470.0,116460.0,2.46039416]
[1757702182479,0.00105,116470.0,116460.0,2.48030556]
[1757702182892,0.00105,116470.0,116460.0,1.68950556]
[1757702183088,5e-05,116470.0,116460.0,2.48018556]
[1757702183891,5e-05,116470.0,116460.0,1.68950556]
[1757702184089,5e-05,116470.0,116460.0,2.47990556]
[1757702184289,5e-05,116470.0,116460.0,1.68950556]
[1757702184489,5e-05,116470.0,116460.0,2.47986556]
[1757702184695,5e-05,116470.0,116460.0,1.68950556]
[1757702184991,5e-05,116470.0,116460.0,2.47978556]
[1757702185889,5e-05,116470.0,116460.0,2.108178]
[1757702186190,5e-05,116470.0,116460.0,2.47978556]
[1757702186590,5e-05,116470.0,116460.0,2.47962556]
[1757702187888,5e-05,116470.0,116460.0,2.47974556]
[1757702190193,5e-05,116470.0,116460.0,1.68950556]
[1757702190384,5e-05,116470.0,116460.0,2.47970556]
[1757702190993,5e-05,116470.0,116460.0,1.858218]
[1757702191297,5e-05,116470.0,116460.0,2.22978556]
[1757702191697,0.01324,116470.0,116460.0,2.03445178]
[1757702191898,0.01324,116470.0,116460.0,2.22025556]
[1757702192310,5e-05,116470.0,116460.0,2.22025556]
[1757702192803,5e-05,116470.0,116460.0,1.42997556]
[1757702192999,5e-05,116470.0,116460.0,2.22061556]
[1757702197700,5e-05,116470.0,116460.0,2.65641934]
[1757702198002,5e-05,116470.0,116460.0,2.47061556]
[1757702199293,5e-05,116470.0,116460.0,2.22061556]
[1757702205502,5e-05,116470.0,116460.0,2.40641934]
[1757702205708,5e-05,116480.0,116470.0,0.1217592]
[1757702206007,5e-05,116480.0,116470.0,1.21836298]
[1757702206802,0.00105,116480.0,116470.0,1.40416676]
[1757702208203,0.00105,116480.0,116470.0,2.19364676]
[1757702210317,0.00105,116480.0,116470.0,1.40416676]
[1757702210515,0.00105,116480.0,116470.0,2.19324676]
[1757702211713,0.00105,116480.0,116470.0,1.8216392]
[1757702211910,0.00105,116480.0,116470.0,2.19324676]
[1757702212413,0.00105,116480.0,116470.0,2.23934288]
[1757702213703,0.00105,116480.0,116470.0,1.45026288]
[1757702213906,0.00105,116480.0,116470.0,2.23914288]
[1757702214413,0.00105,116480.0,116470.0,1.45026288]
[1757702214614,0.00105,116480.0,116470.0,2.23878288]
[1757702219617,0.00105,116480.0,116470.0,2.23814288]
[1757702220219,0.00105,116480.0,116470.0,1.45026288]
[1757702220419,0.00105,116480.0,116470.0,1.8377192]
[1757702220619,0.00105,116480.0,116470.0,2.25542288]
[1757702220821,0.00105,116480.0,116470.0,1.8377192]
[1757702221021,0.00105,116480.0,116470.0,2.25542288]
[1757702221416,0.00105,116480.0,116470.0,1.45026288]
[1757702221621,0.01483,116480.0,116470.0,1.35130368]
[1757702221823,0.01483,116480.0,116470.0,2.24259288]
[1757702222120,0.00105,116480.0,116470.0,2.25574288]
[1757702223520,0.00105,116480.0,116470.0,2.50574288]
[1757702224425,5e-05,116490.0,116480.0,0.1081519]
[1757702224621,5e-05,116490.0,116480.0,2.2314621]
[1757702225622,0.00105,116490.0,116480.0,2.2314621]
[1757702228816,0.00105,116490.0,116480.0,1.4265421]
[1757702229119,0.00105,116490.0,116480.0,2.29913296]
[1757702230420,0.00105,116490.0,116480.0,2.2305821]
[1757702231026,0.0170815,116500.0,116490.0,0.0932244]
[1757702231327,0.0170815,116500.0,116490.0,1.47407808]
[1757702232226,0.0170815,116500.0,116490.0,1.47507808]
[1757702232615,0.0170815,116500.0,116490.0,1.0573744]
[1757702232825,0.0170815,116500.0,116490.0,1.47507808]
[1757702233631,0.0170815,116500.0,116490.0,2.27855808]
[1757702234323,0.0170815,116500.0,116490.0,2.27955808]
[1757702237223,0.0170815,116500.0,116490.0,1.8618544]
[1757702237426,0.0170815,116500.0,116490.0,2.27955808]
[1757702242127,0.0170815,116500.0,116490.0,1.8618544]
[1757702242328,0.0170815,116500.0,116490.0,2.27955808]
[1757702244030,0.0170815,116500.0,116490.0,1.47607808]
[1757702244230,0.0170815,116500.0,116490.0,2.27919808]
[1757702245028,0.0170815,116500.0,116490.0,1.8614944]
[1757702245328,0.0170815,116500.0,116490.0,2.27919808]
[1757702245930,0.0170815,116500.0,116490.0,1.47607808]
[1757702246136,0.0170815,116500.0,116490.0,2.27919808]
[1757702247842,0.0170815,116500.0,116490.0,2.27883808]
[1757702249027,0.0170815,116500.0,116490.0,2.27859808]
[1757702251436,0.35947288,116520.0,116510.0,0.0857762]
[1757702251437,0.02284,116520.0,116510.0,0.0857762]
[1757702251736,0.13923456,116520.0,116510.0,1.94513076]
[1757702251937,0.13923456,116520.0,116510.0,2.08436532]
[1757702252143,0.02284,116520.0,116510.0,2.22359988]